[Event "*** Titled Tuesday Blitz"]
[Site "Chess.com"]
[Date "2020.04.14"]
[Round "4"]
[White "Nikolaj_6"]
[Black "marianokar"]
[Result "0-1"]
[WhiteElo "2597"]
[BlackElo "2370"]
[TimeControl "180+1"]
[EndTime "10:37:39 PDT"]
[Termination "marianokar won by resignation"]

1. e4 {[%clk 0:03:00.9]} 1... c5 {[%clk 0:02:59.8]} 2. Nf3 {[%clk 0:03:01]} 2...
d6 {[%clk 0:03:00]} 3. d4 {[%clk 0:03:01.2]} 3... cxd4 {[%clk 0:02:59.6]} 4.
Nxd4 {[%clk 0:03:01.4]} 4... Nf6 {[%clk 0:03:00.2]} 5. Nc3 {[%clk 0:03:01.5]}
5... Nc6 {[%clk 0:03:00.8]} 6. Bg5 {[%clk 0:03:00.5]} 6... e6 {[%clk 0:03:00.5]}
7. Qd2 {[%clk 0:03:00.2]} 7... a6 {[%clk 0:03:00.6]} 8. O-O-O {[%clk 0:02:59.9]}
8... Bd7 {[%clk 0:03:00.9]} 9. f4 {[%clk 0:02:59.5]} 9... h6 {[%clk 0:03:01.3]}
10. Bh4 {[%clk 0:02:57.9]} 10... g5 {[%clk 0:03:01.1]} 11. fxg5 {[%clk
0:02:57.2]} 11... Ng4 {[%clk 0:03:01.6]} 12. Kb1 {[%clk 0:02:49.3]} 12... Be7
{[%clk 0:02:54]} 13. Nf3 {[%clk 0:02:47.9]} 13... Nge5 {[%clk 0:02:48]} 14. Be2
{[%clk 0:02:41.7]} 14... b5 {[%clk 0:02:47.1]} 15. a3 {[%clk 0:02:39.3]} 15...
Rb8 {[%clk 0:02:40.9]} 16. Nxe5 {[%clk 0:02:37.9]} 16... Nxe5 {[%clk 0:02:40.5]}
17. g3 {[%clk 0:02:32.8]} 17... hxg5 {[%clk 0:02:39.4]} 18. Bxg5 {[%clk
0:02:29.7]} 18... Bxg5 {[%clk 0:02:38.9]} 19. Qxd6 {[%clk 0:02:30.1]} 19... Bf6
{[%clk 0:02:29.4]} 20. Rhf1 {[%clk 0:02:26.4]} 20... Bg7 {[%clk 0:02:29.7]} 21.
Qxa6 {[%clk 0:02:23.3]} 21... Qb6 {[%clk 0:02:26.5]} 22. Qxb6 {[%clk 0:02:14.6]}
22... Rxb6 {[%clk 0:02:27.4]} 23. h4 {[%clk 0:02:15]} 23... Nc4 {[%clk 0:02:08]}
24. Bxc4 {[%clk 0:02:09.4]} 24... bxc4 {[%clk 0:02:07.6]} 25. Rf3 {[%clk
0:02:09.2]} 25... Be5 {[%clk 0:01:58.6]} 26. Ka2 {[%clk 0:02:07.4]} 26... Bc6
{[%clk 0:01:36.1]} 27. Re1 {[%clk 0:02:01.7]} 27... Rg8 {[%clk 0:01:25.9]} 28.
Ree3 {[%clk 0:01:57.5]} 28... Bxc3 {[%clk 0:01:12.2]} 29. Rxc3 {[%clk 0:01:56]}
29... Bxe4 {[%clk 0:01:11.1]} 30. Rf4 {[%clk 0:01:54.7]} 30... Bd5 {[%clk
0:01:10.7]} 31. g4 {[%clk 0:01:51.5]} 31... Ke7 {[%clk 0:01:10.2]} 32. b3 {[%clk
0:01:35]} 32... cxb3+ {[%clk 0:01:05.3]} 33. cxb3 {[%clk 0:01:34.8]} 33... Rgb8
{[%clk 0:00:59.6]} 34. Rc7+ {[%clk 0:01:34.6]} 34... Kd6 {[%clk 0:00:59.8]} 35.
Rfxf7 {[%clk 0:01:30.5]} 35... Rxb3 {[%clk 0:00:59.6]} 36. Rfd7+ {[%clk
0:01:30.6]} 36... Ke5 {[%clk 0:00:59.7]} 0-1

[Event "*** Titled Tuesday Blitz"]
[Site "Chess.com"]
[Date "2020.04.14"]
[Round "4"]
[White "BronceYSueno"]
[Black "Phriex"]
[Result "1-0"]
[WhiteElo "2439"]
[BlackElo "2428"]
[TimeControl "180+1"]
[EndTime "10:37:40 PDT"]
[Termination "BronceYSueno won by resignation"]

1. Nf3 {[%clk 0:02:59.1]} 1... d5 {[%clk 0:02:58.4]} 2. c4 {[%clk 0:02:58.9]}
2... e6 {[%clk 0:02:55.3]} 3. g3 {[%clk 0:02:58]} 3... Nf6 {[%clk 0:02:51.5]} 4.
b3 {[%clk 0:02:55]} 4... Be7 {[%clk 0:02:51.2]} 5. Bg2 {[%clk 0:02:55.2]} 5...
O-O {[%clk 0:02:51.7]} 6. O-O {[%clk 0:02:55.3]} 6... b6 {[%clk 0:02:52.3]} 7.
Bb2 {[%clk 0:02:55.2]} 7... Bb7 {[%clk 0:02:48.9]} 8. e3 {[%clk 0:02:54.8]} 8...
Nbd7 {[%clk 0:02:45]} 9. Qc2 {[%clk 0:02:50.4]} 9... c5 {[%clk 0:02:36.3]} 10.
d3 {[%clk 0:02:49.2]} 10... Rc8 {[%clk 0:02:33.3]} 11. Nbd2 {[%clk 0:02:49]}
11... Re8 {[%clk 0:02:27.7]} 12. Rac1 {[%clk 0:02:45.8]} 12... Bd6 {[%clk
0:02:15.8]} 13. Qb1 {[%clk 0:02:37.7]} 13... Qc7 {[%clk 0:02:15.1]} 14. Rfd1
{[%clk 0:02:36.7]} 14... Ne5 {[%clk 0:02:10.4]} 15. a3 {[%clk 0:02:31.4]} 15...
a5 {[%clk 0:02:00.1]} 16. Nxe5 {[%clk 0:02:21.6]} 16... Bxe5 {[%clk 0:01:58.3]}
17. d4 {[%clk 0:02:22.2]} 17... Bd6 {[%clk 0:01:55.3]} 18. dxc5 {[%clk 0:02:22]}
18... Bxc5 {[%clk 0:01:52.2]} 19. Bxf6 {[%clk 0:02:22.4]} 19... gxf6 {[%clk
0:01:53.1]} 20. cxd5 {[%clk 0:02:21.9]} 20... Qe5 {[%clk 0:01:38.1]} 21. Nc4
{[%clk 0:02:04.7]} 21... Qg5 {[%clk 0:01:31.9]} 22. dxe6 {[%clk 0:01:57.9]}
22... Bxg2 {[%clk 0:01:28.2]} 23. exf7+ {[%clk 0:01:58.1]} 23... Kxf7 {[%clk
0:01:28.3]} 24. Qxh7+ {[%clk 0:01:38.5]} 24... Qg7 {[%clk 0:01:23.9]} 25. Rd7+
{[%clk 0:01:34.2]} 25... Re7 {[%clk 0:01:22.8]} 26. Rxe7+ {[%clk 0:01:30.2]}
26... Bxe7 {[%clk 0:01:22.8]} 27. Qh5+ {[%clk 0:01:17.1]} 27... Qg6 {[%clk
0:01:22.8]} 28. Qxg6+ {[%clk 0:01:14.5]} 28... Kxg6 {[%clk 0:01:23]} 29. Kxg2
{[%clk 0:01:14.1]} 29... Kg7 {[%clk 0:01:17.2]} 30. a4 {[%clk 0:01:14.1]} 30...
Bc5 {[%clk 0:01:13.8]} 31. Rd1 {[%clk 0:01:13.9]} 31... Rc7 {[%clk 0:01:13.6]}
32. Rd8 {[%clk 0:01:13.2]} 32... Rb7 {[%clk 0:01:13.1]} 33. h4 {[%clk
0:01:11.6]} 33... Bb4 {[%clk 0:01:09.4]} 34. Nd6 {[%clk 0:01:08.5]} 34... Rc7
{[%clk 0:01:07.3]} 35. Ne8+ {[%clk 0:01:08.1]} 1-0

[Event "*** Titled Tuesday Blitz"]
[Site "Chess.com"]
[Date "2020.04.14"]
[Round "4"]
[White "Philosopherrr"]
[Black "KetiTsatsalashvili"]
[Result "1-0"]
[WhiteElo "2436"]
[BlackElo "2227"]
[TimeControl "180+1"]
[EndTime "10:37:40 PDT"]
[Termination "Philosopherrr won by checkmate"]

1. e4 {[%clk 0:03:00.8]} 1... c5 {[%clk 0:02:59.2]} 2. Nf3 {[%clk 0:03:00.9]}
2... d6 {[%clk 0:02:58.2]} 3. Bb5+ {[%clk 0:03:00.6]} 3... Bd7 {[%clk
0:02:56.9]} 4. Bd3 {[%clk 0:02:59.9]} 4... Nf6 {[%clk 0:02:52.5]} 5. O-O {[%clk
0:02:59.1]} 5... Nc6 {[%clk 0:02:52.5]} 6. c3 {[%clk 0:02:59.3]} 6... e6 {[%clk
0:02:52.8]} 7. Bc2 {[%clk 0:02:58.7]} 7... Be7 {[%clk 0:02:53]} 8. d4 {[%clk
0:02:58.8]} 8... O-O {[%clk 0:02:46.8]} 9. Re1 {[%clk 0:02:57.4]} 9... Qc7
{[%clk 0:02:46.4]} 10. e5 {[%clk 0:02:52.6]} 10... dxe5 {[%clk 0:02:34.5]} 11.
dxe5 {[%clk 0:02:50.7]} 11... Nd5 {[%clk 0:02:32.4]} 12. Nbd2 {[%clk 0:02:47.2]}
12... Rad8 {[%clk 0:02:28.6]} 13. Qe2 {[%clk 0:02:33.5]} 13... Bc8 {[%clk
0:02:25.1]} 14. Nf1 {[%clk 0:02:27.3]} 14... Rfe8 {[%clk 0:02:18.4]} 15. Ng3
{[%clk 0:02:27.1]} 15... Bf8 {[%clk 0:02:16.8]} 16. Bg5 {[%clk 0:02:26]} 16...
Be7 {[%clk 0:02:13.4]} 17. Qe4 {[%clk 0:02:23.1]} 17... g6 {[%clk 0:02:12.4]}
18. Qh4 {[%clk 0:02:23]} 18... Rd7 {[%clk 0:01:30.8]} 19. Ne4 {[%clk 0:02:14.7]}
19... h5 {[%clk 0:01:09.9]} 20. Bxe7 {[%clk 0:02:00.5]} 20... Ncxe7 {[%clk
0:01:03.1]} 21. c4 {[%clk 0:01:55.6]} 21... Nf5 {[%clk 0:00:58.4]} 22. Qg5
{[%clk 0:01:51]} 22... Nb4 {[%clk 0:00:48.1]} 23. Nf6+ {[%clk 0:01:51]} 23...
Kf8 {[%clk 0:00:47.1]} 24. Bxf5 {[%clk 0:01:50.9]} 24... exf5 {[%clk 0:00:46.1]}
25. Qh6+ {[%clk 0:01:37.1]} 25... Ke7 {[%clk 0:00:44.9]} 26. Nxe8 {[%clk
0:01:27]} 26... Kxe8 {[%clk 0:00:44.8]} 27. e6 {[%clk 0:01:27.4]} 27... Re7
{[%clk 0:00:43.7]} 28. Qh8# {[%clk 0:01:25.2]} 1-0

[Event "*** Titled Tuesday Blitz"]
[Site "Chess.com"]
[Date "2020.04.14"]
[Round "4"]
[White "Gordima"]
[Black "Talcrifice"]
[Result "1-0"]
[WhiteElo "2764"]
[BlackElo "2547"]
[TimeControl "180+1"]
[EndTime "10:37:43 PDT"]
[Termination "Gordima won by checkmate"]

1. d4 {[%clk 0:02:59.8]} 1... Nf6 {[%clk 0:02:59.4]} 2. c4 {[%clk 0:02:58.4]}
2... e6 {[%clk 0:02:59.3]} 3. Nc3 {[%clk 0:02:58.6]} 3... Bb4 {[%clk 0:02:59]}
4. Qc2 {[%clk 0:02:59.3]} 4... d5 {[%clk 0:02:58.9]} 5. cxd5 {[%clk 0:02:59.4]}
5... Qxd5 {[%clk 0:02:59.5]} 6. e3 {[%clk 0:02:58]} 6... O-O {[%clk 0:02:58]} 7.
Bd2 {[%clk 0:02:57.9]} 7... Qd8 {[%clk 0:02:56.4]} 8. Nf3 {[%clk 0:02:48.8]}
8... b6 {[%clk 0:02:55]} 9. Bd3 {[%clk 0:02:47.7]} 9... Bb7 {[%clk 0:02:53.6]}
10. O-O {[%clk 0:02:47.4]} 10... Nbd7 {[%clk 0:02:53.5]} 11. a3 {[%clk
0:02:44.6]} 11... Be7 {[%clk 0:02:49.7]} 12. e4 {[%clk 0:02:22.8]} 12... h6
{[%clk 0:02:40.2]} 13. e5 {[%clk 0:02:11.4]} 13... Nd5 {[%clk 0:02:37]} 14. Ne4
{[%clk 0:02:09.2]} 14... c5 {[%clk 0:02:34.3]} 15. Rfe1 {[%clk 0:01:44.4]} 15...
cxd4 {[%clk 0:02:29]} 16. Qd1 {[%clk 0:00:59.7]} 16... Nc5 {[%clk 0:02:22.7]}
17. Nxc5 {[%clk 0:00:58.9]} 17... bxc5 {[%clk 0:02:22.4]} 18. Qe2 {[%clk
0:00:53.7]} 18... Qb6 {[%clk 0:02:13.8]} 19. Qe4 {[%clk 0:00:46.5]} 19... Nf6
{[%clk 0:02:05.3]} 20. Qh4 {[%clk 0:00:42.3]} 20... Nd5 {[%clk 0:01:58.8]} 21.
Qg3 {[%clk 0:00:41.2]} 21... Kh8 {[%clk 0:01:51.2]} 22. Qh3 {[%clk 0:00:36.6]}
22... Kg8 {[%clk 0:01:29.8]} 23. Bxh6 {[%clk 0:00:34.7]} 23... gxh6 {[%clk
0:01:28.9]} 24. Qxh6 {[%clk 0:00:34.4]} 24... f5 {[%clk 0:01:28.9]} 25. exf6
{[%clk 0:00:31]} 25... Rxf6 {[%clk 0:01:22.5]} 26. Qh7+ {[%clk 0:00:30.6]} 26...
Kf8 {[%clk 0:01:22.4]} 27. Qh8+ {[%clk 0:00:30.7]} 27... Kf7 {[%clk 0:01:18.5]}
28. Ne5# {[%clk 0:00:31.6]} 1-0

[Event "*** Titled Tuesday Blitz"]
[Site "Chess.com"]
[Date "2020.04.14"]
[Round "4"]
[White "Morshynska"]
[Black "Mastroskaki"]
[Result "0-1"]
[WhiteElo "2074"]
[BlackElo "2718"]
[TimeControl "180+1"]
[EndTime "10:37:49 PDT"]
[Termination "Mastroskaki won by resignation"]

1. e4 {[%clk 0:03:00.9]} 1... c5 {[%clk 0:02:59.6]} 2. d3 {[%clk 0:02:59.2]}
2... e6 {[%clk 0:02:58.4]} 3. f4 {[%clk 0:02:56.7]} 3... d5 {[%clk 0:02:58.7]}
4. Be2 {[%clk 0:02:55]} 4... Nc6 {[%clk 0:02:57.6]} 5. c3 {[%clk 0:02:48.8]}
5... g6 {[%clk 0:02:53]} 6. Nf3 {[%clk 0:02:46.7]} 6... Bg7 {[%clk 0:02:52.9]}
7. O-O {[%clk 0:02:44.2]} 7... Nge7 {[%clk 0:02:52]} 8. Qe1 {[%clk 0:02:41.3]}
8... d4 {[%clk 0:02:48.6]} 9. a4 {[%clk 0:02:37.2]} 9... b6 {[%clk 0:02:44.6]}
10. Na3 {[%clk 0:02:32.3]} 10... Ba6 {[%clk 0:02:40.5]} 11. Nb5 {[%clk
0:02:25.5]} 11... O-O {[%clk 0:02:38.9]} 12. Bd2 {[%clk 0:02:19.3]} 12... Na5
{[%clk 0:02:35.2]} 13. c4 {[%clk 0:01:31]} 13... Nb3 {[%clk 0:02:33.4]} 14. Ra3
{[%clk 0:01:22.1]} 14... Nxd2 {[%clk 0:02:33.2]} 15. Qxd2 {[%clk 0:01:11.9]}
15... Bb7 {[%clk 0:02:34.1]} 16. Raa1 {[%clk 0:01:07.4]} 16... a6 {[%clk
0:02:33.5]} 17. Na3 {[%clk 0:01:07.2]} 17... Nc6 {[%clk 0:02:33.2]} 18. Nc2
{[%clk 0:01:06.3]} 18... f5 {[%clk 0:02:30.9]} 19. Ng5 {[%clk 0:00:57.3]} 19...
Qd7 {[%clk 0:02:24.6]} 20. exf5 {[%clk 0:00:54.7]} 20... exf5 {[%clk 0:02:21.7]}
21. Bf3 {[%clk 0:00:53.7]} 21... Na5 {[%clk 0:02:19.4]} 22. Qf2 {[%clk
0:00:41.7]} 22... h6 {[%clk 0:02:15.2]} 23. Bxb7 {[%clk 0:00:39.3]} 23... Nxb7
{[%clk 0:02:11]} 24. Nf3 {[%clk 0:00:36.9]} 24... Rae8 {[%clk 0:02:10.4]} 25. b4
{[%clk 0:00:24.9]} 25... Qd6 {[%clk 0:02:08.5]} 26. bxc5 {[%clk 0:00:16.6]}
26... Nxc5 {[%clk 0:02:07.3]} 27. Nfe1 {[%clk 0:00:13.3]} 27... Re3 {[%clk
0:02:05.1]} 28. Ra3 {[%clk 0:00:10.9]} 28... Rfe8 {[%clk 0:02:01.7]} 29. a5
{[%clk 0:00:10.2]} 29... bxa5 {[%clk 0:01:56.4]} 30. Rxa5 {[%clk 0:00:11.1]}
30... Nxd3 {[%clk 0:01:55.3]} 31. Nxd3 {[%clk 0:00:10.8]} 31... Rxd3 {[%clk
0:01:56.2]} 32. Qf3 {[%clk 0:00:09.5]} 32... Rxf3 {[%clk 0:01:55.7]} 0-1

[Event "*** Titled Tuesday Blitz"]
[Site "Chess.com"]
[Date "2020.04.14"]
[Round "4"]
[White "RubensCezila"]
[Black "Justinz"]
[Result "1-0"]
[WhiteElo "2461"]
[BlackElo "2276"]
[TimeControl "180+1"]
[EndTime "10:37:50 PDT"]
[Termination "RubensCezila won by resignation"]

1. c4 {[%clk 0:03:00.9]} 1... e5 {[%clk 0:02:57.5]} 2. Nc3 {[%clk 0:03:00.7]}
2... Nf6 {[%clk 0:02:41.5]} 3. g3 {[%clk 0:03:00.1]} 3... c6 {[%clk 0:02:38.4]}
4. d4 {[%clk 0:02:57.3]} 4... exd4 {[%clk 0:02:36]} 5. Qxd4 {[%clk 0:02:58.2]}
5... d5 {[%clk 0:02:32.5]} 6. Bg5 {[%clk 0:02:57]} 6... Be7 {[%clk 0:02:25.1]}
7. e3 {[%clk 0:02:48]} 7... Be6 {[%clk 0:02:22.1]} 8. cxd5 {[%clk 0:02:45]} 8...
Nxd5 {[%clk 0:02:19.5]} 9. Bxe7 {[%clk 0:02:42.7]} 9... Qxe7 {[%clk 0:02:19.5]}
10. Bg2 {[%clk 0:02:32.2]} 10... Nxc3 {[%clk 0:02:17.9]} 11. Qxc3 {[%clk
0:02:23.1]} 11... O-O {[%clk 0:02:17]} 12. Ne2 {[%clk 0:02:17.7]} 12... Nd7
{[%clk 0:02:16.8]} 13. Nd4 {[%clk 0:02:15.3]} 13... Bg4 {[%clk 0:02:15.9]} 14.
h3 {[%clk 0:02:12.5]} 14... Bh5 {[%clk 0:02:15.2]} 15. Nf5 {[%clk 0:02:06.5]}
15... Qf6 {[%clk 0:01:59]} 16. Qxf6 {[%clk 0:01:59.5]} 16... Nxf6 {[%clk
0:01:58.7]} 17. g4 {[%clk 0:01:59.2]} 17... Bg6 {[%clk 0:01:58.8]} 18. Ne7+
{[%clk 0:01:59.5]} 18... Kh8 {[%clk 0:01:59.1]} 19. Nxg6+ {[%clk 0:02:00]} 19...
hxg6 {[%clk 0:01:59.6]} 20. Ke2 {[%clk 0:01:59.7]} 20... Rad8 {[%clk 0:01:59]}
21. Rhd1 {[%clk 0:01:58.1]} 21... g5 {[%clk 0:01:56.2]} 22. b4 {[%clk
0:01:53.4]} 22... Rfe8 {[%clk 0:01:51.8]} 23. a4 {[%clk 0:01:50.9]} 23... a6
{[%clk 0:01:47.6]} 24. Rac1 {[%clk 0:01:40.7]} 24... Kg8 {[%clk 0:01:44.5]} 25.
Rxd8 {[%clk 0:01:36.2]} 25... Rxd8 {[%clk 0:01:43.9]} 26. Rc5 {[%clk 0:01:36.7]}
26... Nd5 {[%clk 0:01:40.1]} 27. Bxd5 {[%clk 0:01:35.3]} 27... Rxd5 {[%clk
0:01:39.2]} 28. Rxd5 {[%clk 0:01:33.7]} 28... cxd5 {[%clk 0:01:39.3]} 29. Kd3
{[%clk 0:01:34.3]} 29... Kf8 {[%clk 0:01:39.7]} 30. Kd4 {[%clk 0:01:34.9]} 30...
Ke7 {[%clk 0:01:40.2]} 31. Kxd5 {[%clk 0:01:35.4]} 31... Kd7 {[%clk 0:01:35.9]}
32. a5 {[%clk 0:01:32.5]} 32... f6 {[%clk 0:01:34.9]} 33. Kc5 {[%clk 0:01:31.5]}
33... Kc7 {[%clk 0:01:32.3]} 34. e4 {[%clk 0:01:30.2]} 34... Kd7 {[%clk
0:01:33.2]} 35. Kb6 {[%clk 0:01:28.6]} 35... Kc8 {[%clk 0:01:33]} 36. Kc5 {[%clk
0:01:20.8]} 36... Kc7 {[%clk 0:01:32.9]} 37. Kd5 {[%clk 0:01:20.6]} 37... Kd7
{[%clk 0:01:32.8]} 38. e5 {[%clk 0:01:20.5]} 38... Ke7 {[%clk 0:01:30.1]} 39. e6
{[%clk 0:01:16.9]} 39... g6 {[%clk 0:01:26.6]} 40. f3 {[%clk 0:01:16.1]} 40...
f5 {[%clk 0:01:26.6]} 41. Ke5 {[%clk 0:01:09.9]} 1-0

[Event "*** Titled Tuesday Blitz"]
[Site "Chess.com"]
[Date "2020.04.14"]
[Round "4"]
[White "GHANDEEVAM2003"]
[Black "tylityli"]
[Result "1-0"]
[WhiteElo "2906"]
[BlackElo "2146"]
[TimeControl "180+1"]
[EndTime "10:37:52 PDT"]
[Termination "GHANDEEVAM2003 won by resignation"]

1. d4 {[%clk 0:03:00.9]} 1... Nf6 {[%clk 0:02:59]} 2. c4 {[%clk 0:03:01.2]} 2...
e6 {[%clk 0:02:49.3]} 3. Nc3 {[%clk 0:03:01.3]} 3... Bb4 {[%clk 0:02:49.4]} 4.
g3 {[%clk 0:03:01.7]} 4... Nc6 {[%clk 0:02:47.8]} 5. Bg2 {[%clk 0:03:01.8]} 5...
O-O {[%clk 0:02:47.8]} 6. Nf3 {[%clk 0:03:00.7]} 6... d5 {[%clk 0:02:48]} 7. a3
{[%clk 0:03:00.7]} 7... Be7 {[%clk 0:02:46]} 8. Ne5 {[%clk 0:02:55.9]} 8... Nxe5
{[%clk 0:02:41.6]} 9. dxe5 {[%clk 0:02:56.8]} 9... Nd7 {[%clk 0:02:41.9]} 10.
cxd5 {[%clk 0:02:57.4]} 10... Nxe5 {[%clk 0:02:42.2]} 11. O-O {[%clk 0:02:57.9]}
11... exd5 {[%clk 0:02:40.8]} 12. Nxd5 {[%clk 0:02:58.8]} 12... c6 {[%clk
0:02:39.2]} 13. Nxe7+ {[%clk 0:02:58.6]} 13... Qxe7 {[%clk 0:02:40.1]} 14. Qc2
{[%clk 0:02:54.6]} 14... Be6 {[%clk 0:02:34.9]} 15. f4 {[%clk 0:02:49.1]} 15...
Nd7 {[%clk 0:02:21.9]} 16. f5 {[%clk 0:02:47.6]} 16... Bd5 {[%clk 0:02:19.9]}
17. e4 {[%clk 0:02:47.7]} 17... Bxe4 {[%clk 0:01:44.5]} 18. Qxe4 {[%clk
0:02:48.6]} 18... Qf6 {[%clk 0:01:43.7]} 19. Qc2 {[%clk 0:02:41.6]} 19... Rfe8
{[%clk 0:01:40.6]} 20. Bf4 {[%clk 0:02:41.9]} 20... Nb6 {[%clk 0:01:37.6]} 21.
Rae1 {[%clk 0:02:40.2]} 21... h6 {[%clk 0:01:33]} 22. Bd2 {[%clk 0:02:32.9]}
22... Qd4+ {[%clk 0:01:29.6]} 23. Kh1 {[%clk 0:02:32.7]} 23... Nc4 {[%clk
0:01:28.7]} 24. Bc3 {[%clk 0:02:29.6]} 24... Qb6 {[%clk 0:01:18.1]} 25. Qf2
{[%clk 0:02:21.2]} 25... Qb3 {[%clk 0:01:10.2]} 26. f6 {[%clk 0:02:12.7]} 26...
g6 {[%clk 0:01:07]} 27. h4 {[%clk 0:02:12.5]} 27... Nxa3 {[%clk 0:01:02.6]} 28.
Qd2 {[%clk 0:02:10.5]} 28... Kh7 {[%clk 0:00:47.7]} 29. Rxe8 {[%clk 0:02:04.9]}
29... Rxe8 {[%clk 0:00:41.1]} 30. bxa3 {[%clk 0:02:04.3]} 30... Qxa3 {[%clk
0:00:41.2]} 31. h5 {[%clk 0:01:55.8]} 31... g5 {[%clk 0:00:38]} 32. Qd3+ {[%clk
0:01:48.6]} 32... Kg8 {[%clk 0:00:36.2]} 33. Qg6+ {[%clk 0:01:41.6]} 1-0

[Event "*** Titled Tuesday Blitz"]
[Site "Chess.com"]
[Date "2020.04.14"]
[Round "4"]
[White "Kiborg95"]
[Black "almo64"]
[Result "0-1"]
[WhiteElo "2787"]
[BlackElo "2863"]
[TimeControl "180+1"]
[EndTime "10:37:54 PDT"]
[Termination "almo64 won by resignation"]

1. e4 {[%clk 0:03:00.9]} 1... c5 {[%clk 0:02:58.7]} 2. Nc3 {[%clk 0:03:01]} 2...
Nc6 {[%clk 0:02:58]} 3. Nge2 {[%clk 0:03:00.6]} 3... Nf6 {[%clk 0:02:55.6]} 4.
d4 {[%clk 0:03:01]} 4... cxd4 {[%clk 0:02:55.9]} 5. Nxd4 {[%clk 0:03:01.9]} 5...
d6 {[%clk 0:02:56.3]} 6. Bc4 {[%clk 0:03:01.5]} 6... e6 {[%clk 0:02:54.4]} 7.
Be3 {[%clk 0:02:58.6]} 7... a6 {[%clk 0:02:52.4]} 8. f4 {[%clk 0:02:56.7]} 8...
Qc7 {[%clk 0:02:49.6]} 9. Bb3 {[%clk 0:02:56.8]} 9... Na5 {[%clk 0:02:44.8]} 10.
Qf3 {[%clk 0:02:50]} 10... b5 {[%clk 0:02:40.7]} 11. O-O {[%clk 0:01:44.2]}
11... Bb7 {[%clk 0:02:38.9]} 12. f5 {[%clk 0:01:30.6]} 12... Nxb3 {[%clk
0:02:25.7]} 13. cxb3 {[%clk 0:01:25.1]} 13... b4 {[%clk 0:02:23.8]} 14. Na4
{[%clk 0:01:25.5]} 14... Bxe4 {[%clk 0:02:21.1]} 15. Qh3 {[%clk 0:01:25.8]}
15... e5 {[%clk 0:02:19.4]} 16. Rac1 {[%clk 0:01:25.9]} 16... Qb7 {[%clk
0:02:18.1]} 17. Ne2 {[%clk 0:01:24.3]} 17... Nd5 {[%clk 0:01:56.5]} 18. Bd2
{[%clk 0:01:21.2]} 18... Be7 {[%clk 0:01:52.1]} 19. Rc4 {[%clk 0:01:09.9]} 19...
Nf6 {[%clk 0:01:45.1]} 20. Rxb4 {[%clk 0:01:09.3]} 20... Qc7 {[%clk 0:01:24.4]}
21. Rc1 {[%clk 0:01:08.7]} 21... Qd8 {[%clk 0:01:24.3]} 22. Nec3 {[%clk
0:00:39.4]} 22... Bc6 {[%clk 0:01:21.2]} 23. Nb6 {[%clk 0:00:39.6]} 23... a5
{[%clk 0:01:13.6]} 24. Nxa8 {[%clk 0:00:25.9]} 24... axb4 {[%clk 0:01:12.9]} 0-1

[Event "*** Titled Tuesday Blitz"]
[Site "Chess.com"]
[Date "2020.04.14"]
[Round "4"]
[White "Bagirova"]
[Black "Egorov_Pavel"]
[Result "1-0"]
[WhiteElo "2221"]
[BlackElo "2399"]
[TimeControl "180+1"]
[EndTime "10:38:02 PDT"]
[Termination "Bagirova won by resignation"]

1. e4 {[%clk 0:02:38.9]} 1... Nf6 {[%clk 0:03:00.5]} 2. e5 {[%clk 0:02:37.8]}
2... Nd5 {[%clk 0:03:00.6]} 3. d4 {[%clk 0:02:38]} 3... d6 {[%clk 0:03:00.6]} 4.
exd6 {[%clk 0:02:38.1]} 4... cxd6 {[%clk 0:03:01.5]} 5. Nf3 {[%clk 0:02:36.8]}
5... g6 {[%clk 0:03:01.2]} 6. Bd3 {[%clk 0:02:35.2]} 6... Bg7 {[%clk 0:03:01.2]}
7. O-O {[%clk 0:02:35.5]} 7... O-O {[%clk 0:03:01.6]} 8. c3 {[%clk 0:02:34]}
8... Nc6 {[%clk 0:02:57.6]} 9. h3 {[%clk 0:02:32.1]} 9... e5 {[%clk 0:02:55.7]}
10. dxe5 {[%clk 0:02:23.9]} 10... dxe5 {[%clk 0:02:56.6]} 11. Bc4 {[%clk
0:02:06.6]} 11... Nb6 {[%clk 0:02:52.5]} 12. Bb3 {[%clk 0:02:05.9]} 12... a5
{[%clk 0:02:44.8]} 13. a4 {[%clk 0:02:04.5]} 13... h6 {[%clk 0:02:38.6]} 14. Be3
{[%clk 0:02:04.1]} 14... Nd7 {[%clk 0:02:18.7]} 15. Nbd2 {[%clk 0:01:58.3]}
15... Nf6 {[%clk 0:02:14.3]} 16. Nc4 {[%clk 0:01:56.2]} 16... Nd5 {[%clk
0:02:05.6]} 17. Bc5 {[%clk 0:01:52]} 17... Nde7 {[%clk 0:01:53.8]} 18. Qxd8
{[%clk 0:01:44.8]} 18... Rxd8 {[%clk 0:01:54.7]} 19. Ncxe5 {[%clk 0:01:33.4]}
19... Nxe5 {[%clk 0:01:48.7]} 20. Nxe5 {[%clk 0:01:30.1]} 20... Bxe5 {[%clk
0:01:49.3]} 21. Bxe7 {[%clk 0:01:29.8]} 21... Rd2 {[%clk 0:01:49.1]} 22. Rad1
{[%clk 0:01:21.4]} 22... Rxb2 {[%clk 0:01:42.1]} 23. Rd8+ {[%clk 0:01:20]} 23...
Kg7 {[%clk 0:01:42.5]} 24. Bf8+ {[%clk 0:01:13.6]} 24... Kf6 {[%clk 0:01:41.2]}
25. Bd5 {[%clk 0:00:57]} 25... Rd2 {[%clk 0:01:26.8]} 26. c4 {[%clk 0:00:56.4]}
26... Rb8 {[%clk 0:01:14]} 27. Bxh6 {[%clk 0:00:54.8]} 27... Be6 {[%clk
0:01:07.6]} 28. Rxb8 {[%clk 0:00:51.3]} 28... Bxb8 {[%clk 0:01:03.3]} 29. Bxd2
{[%clk 0:00:51.5]} 1-0